bitfinex/quotes_ETHUSD_20240922
["timestamp","ask_amount","ask_price","bid_price","bid_amount"]
[1726969876490,2.41992183,2609.5,2609.2,1.91627]
[1726969876646,0.27756552,2609.4,2609.0,1.91639]
[1726969876850,0.09582478,2609.3,2609.0,1.91639]
[1726969877846,0.55,2609.2,2609.0,1.91639]
[1726969878292,0.55,2609.2,2609.0,1.91638]
[1726969878990,0.55,2609.2,2609.0,1.91642]
[1726969879255,2.3241,2609.1,2608.6,3.0]
[1726969879373,2.3241,2608.7,2608.1,1.9552665]
[1726969879574,0.64586096,2608.6,2608.1,0.0381865]
[1726969879793,2.56260096,2608.6,2608.1,0.0381865]
[1726969881799,0.55,2608.4,2608.1,0.0381865]
[1726969882196,0.64586254,2608.4,2608.1,0.0381865]
[1726969882402,0.96219234,2608.4,2608.1,0.0381865]
[1726969882606,0.55,2608.6,2608.1,1.9552365]
[1726969882902,2.3241,2608.7,2608.3,1.9169]
[1726969882903,2.41994662,2608.7,2608.3,1.9169]
[1726969883052,2.91366348,2608.7,2608.3,1.9169]
[1726969883399,4.83036348,2608.7,2608.1,0.0381865]
[1726969883769,1.91673,2608.6,2608.1,0.0381865]
[1726969884101,0.55,2608.4,2608.1,0.0381865]
[1726969884395,0.09586012,2608.3,2608.1,0.0381865]
[1726969884889,0.55,2608.2,2608.1,0.0381865]
[1726969885253,0.55,2608.3,2608.1,0.0381865]
[1726969886393,0.0958596,2608.2,2608.1,0.0381865]
[1726969886711,4.8869896,2608.2,2608.1,0.0381865]
[1726969887001,5.56739156,2608.2,2608.1,0.0381865]
[1726969888988,5.56739156,2608.2,2607.3,0.0381865]
[1726969888989,0.55,2607.5,2607.3,0.0381865]
[1726969889187,0.09588887,2607.4,2607.3,0.0381865]
[1726969889413,0.64588887,2607.4,2607.3,0.0381865]
[1726969890325,0.55,2607.4,2607.3,0.0381865]
[1726969891193,0.55,2607.4,2607.3,0.09053716]
[1726969891504,0.84699888,2607.4,2607.3,0.09053716]
[1726969891674,0.84699888,2607.4,2607.3,0.0381865]
[1726969892787,0.55,2607.5,2607.3,0.0381865]
[1726969894476,0.55,2607.4,2607.3,0.0381865]
[1726969894683,0.64589974,2607.4,2607.3,0.0381865]
[1726969894915,0.64589974,2607.5,2607.3,0.0381865]
[1726969895126,0.55,2607.4,2607.3,0.0381865]
[1726969895296,1.18005766,2607.4,2607.3,0.0381865]
[1726969895498,1.084158,2607.4,2607.3,0.0381865]
[1726969895691,3.542958,2607.4,2607.3,0.0381865]
[1726969895892,3.63886128,2607.4,2607.3,0.0381865]
[1726969896215,3.63885966,2607.4,2607.3,0.0381865]
[1726969896383,5.55646949,2607.4,2607.3,0.0381865]
[1726969896581,3.63885949,2607.4,2607.3,0.0381865]
[1726969897284,3.63885949,2607.4,2606.5,0.0381865]
[1726969897285,3.0088,2607.0,2606.5,0.0381865]
[1726969897539,0.55,2606.8,2606.5,0.0381865]
[1726969897821,0.55,2606.6,2606.5,1.9564665]
[1726969898314,0.55,2606.8,2606.6,1.91815]
[1726969899349,0.55,2607.2,2606.8,1.91802]
[1726969899519,2.11675146,2607.2,2606.8,1.91802]
[1726969900141,0.55,2607.0,2606.8,1.9299591]
[1726969900294,0.55,2607.0,2606.8,0.0119391]
[1726969901008,0.64591209,2606.9,2606.8,0.0119391]
[1726969901693,0.55,2606.9,2606.8,0.06899041]
[1726969905107,2.9136,2606.9,2606.8,0.06899041]
[1726969905430,3.21455121,2606.9,2606.8,0.0119391]
[1726969906050,2.9136,2606.4,2606.2,0.0392451]
[1726969906336,3.0095417,2606.4,2606.2,0.0392451]
[1726969906542,0.55,2606.3,2606.2,0.0392451]
[1726969906777,0.55,2606.3,2606.2,1.9577451]
[1726969907246,0.55,2606.3,2606.2,0.0392451]
[1726969907938,0.55,2606.5,2606.2,0.0392451]
[1726969908093,0.8509535,2606.5,2606.2,0.0392451]
[1726969908709,0.8509535,2606.5,2606.2,1.9577351]
[1726969908947,2.3636,2607.0,2606.2,0.0392451]
[1726969909290,2.3636,2607.0,2606.9,1.91798]
[1726969909538,2.3636,2607.0,2606.7,3.83616]
[1726969909692,2.3636,2607.0,2606.7,1.91808]
[1726969909898,2.3636,2607.0,2606.7,1.91807]
[1726969910512,0.55,2606.9,2606.7,1.91807]
[1726969910696,2.4009,2607.6,2607.2,1.91771]
[1726969911000,2.4967941,2607.6,2607.2,1.91775]
[1726969911237,2.4967941,2607.6,2607.1,1.91777]
[1726969911600,2.4967941,2607.6,2606.9,1.91797]
[1726969911824,4.31853,2607.4,2606.7,3.83618]
[1726969912025,0.71951296,2607.3,2606.7,1.91808]
[1726969912232,0.55,2607.2,2606.8,1.91805]
[1726969912556,0.55,2607.0,2606.8,1.91805]
[1726969913200,0.55,2607.2,2606.9,1.91798]
[1726969913434,0.55,2607.0,2606.5,1.91824]
[1726969913640,0.55,2607.0,2606.7,1.91811]
[1726969913852,0.64591153,2607.0,2606.7,1.91808]
[1726969915400,0.55,2607.0,2606.7,1.91808]
[1726969916245,0.55,2607.0,2606.8,1.91805]
[1726969916444,0.55,2607.0,2606.8,1.9696741]
[1726969916747,0.85468108,2607.0,2606.8,1.9696741]
[1726969916904,0.55,2606.9,2606.8,0.0516241]
[1726969917106,0.55,2606.8,2606.7,1.91812]
[1726969917306,0.55,2606.8,2606.7,1.97000852]
[1726969917816,0.55,2606.9,2606.7,0.05188852]
[1726969918087,0.09591599,2606.8,2606.5,1.91824]
[1726969918383,0.64591599,2606.9,2606.4,1.91834]
[1726969918557,0.64591599,2606.9,2606.6,0.05208514]
[1726969918764,0.55,2606.7,2606.5,0.05224109]
[1726969919189,0.55,2606.8,2606.6,0.05208514]
[1726969920258,0.64592096,2606.7,2606.6,0.05208514]
[1726969920484,0.09592096,2606.7,2606.3,1.91837]
[1726969920795,0.09592096,2606.7,2606.2,0.0392451]
[1726969920796,0.64592096,2606.7,2606.2,0.0392451]
[1726969920954,2.9509,2606.6,2606.4,0.05244791]
[1726969921291,2.9509,2606.6,2606.2,0.0392451]
[1726969921292,0.55,2606.4,2606.2,0.0392451]
[1726969921665,0.55,2606.4,2606.3,1.91842]
[1726969922558,0.55,2606.4,2606.2,0.0392451]
[1726969922758,0.55,2606.4,2606.2,1.9577451]
[1726969922954,0.55,2606.7,2606.4,1.91834]
[1726969923156,0.84509,2606.7,2606.4,1.91834]
[1726969923383,0.29509,2606.7,2606.4,1.9183]
[1726969923585,0.09591432,2607.1,2606.6,1.9182]
[1726969924897,0.55,2607.0,2606.6,1.9182]
[1726969925098,0.55,2606.8,2606.6,1.9182]
[1726969925469,0.55,2607.0,2606.6,1.9182]
[1726969925872,0.09591276,2606.9,2606.6,1.9182]
[1726969926075,0.55,2606.8,2606.4,3.83661]
[1726969926294,0.55,2606.8,2606.5,1.91828]
[1726969927673,0.55,2606.8,2606.6,1.91819]
[1726969927877,0.55,2606.8,2606.5,1.91828]
[1726969928074,0.55,2606.9,2606.5,1.71828]
[1726969929363,0.55,2606.7,2606.5,1.71828]
[1726969930105,3.83574,2607.1,2606.5,1.71828]
[1726969930106,0.55,2606.9,2606.5,1.71828]
[1726969930262,0.55,2606.9,2606.2,1.9577251]
[1726969930263,3.0447,2606.7,2606.2,1.9577251]
[1726969930600,0.55,2606.5,2606.2,1.9577251]
[1726969931363,0.55,2606.5,2606.2,0.0392451]
[1726969931584,0.55,2606.5,2606.3,0.04793576]
[1726969932101,0.64592954,2606.4,2606.3,0.04793576]
[1726969932867,0.55,2606.4,2606.3,0.04793576]
[1726969934268,0.55,2606.4,2606.3,1.96635576]
[1726969934492,0.31406142,2606.6,2606.3,1.96635576]
[1726969934493,0.55,2606.5,2606.3,0.04793576]
[1726969934717,0.88587614,2606.5,2606.3,0.04793576]
[1726969935014,0.64592956,2606.4,2606.3,0.04793576]
[1726969935383,5.05897956,2606.4,2606.3,0.04793576]
[1726969935583,0.55,2606.3,2606.2,0.0392451]
[1726969936488,0.64593845,2606.3,2606.2,0.0392451]
[1726969936676,1.08947946,2606.3,2606.2,0.0392451]
[1726969936867,1.08947946,2606.3,2606.2,0.08730108]
[1726969937088,1.08947946,2606.3,2606.2,0.0392451]
[1726969937311,1.08947946,2606.3,2606.2,0.08730108]
[1726969937536,1.08947946,2606.3,2606.2,0.0392451]
[1726969938114,3.00789946,2606.3,2606.2,0.0392451]
[1726969941539,8.50259946,2606.3,2606.2,0.0392451]
[1726969943220,9.10393007,2606.3,2606.2,0.0392451]
[1726969947052,1.14081007,2606.3,2606.2,0.0392451]
[1726969947227,0.60133061,2606.3,2606.2,0.0392451]
[1726969948712,1.15133061,2606.3,2606.2,0.0392451]
[1726969951126,2.2658,2606.9,2606.5,1.91823]
[1726969951455,0.09591622,2606.9,2606.6,1.96190232]
[1726969951624,0.96958,2606.9,2606.6,1.96190232]
[1726969951956,8.03115532,2607.0,2606.6,1.96190232]
[1726969953034,0.55,2606.9,2606.6,1.96190232]
[1726969953242,0.55,2606.9,2606.6,0.04371232]
[1726969953630,0.55,2606.9,2606.4,3.83665]
[1726969953830,0.55,2606.9,2606.7,0.05207164]
[1726969954030,1.40811553,2606.9,2606.6,1.9182]
[1726969954211,1.40811553,2606.9,2606.8,0.05191572]
[1726969954410,1.40811553,2606.9,2606.6,1.91815]
[1726969954615,0.55,2607.1,2606.8,0.05191572]
[1726969954917,0.55,2607.1,2606.6,1.91815]
[1726969954918,0.64591109,2607.1,2606.7,0.05207164]
[1726969955255,2.56375109,2607.1,2606.8,0.05189199]
[1726969955425,0.55,2606.9,2606.4,1.9183]
[1726969957790,0.55,2606.9,2606.2,1.9577051]
[1726969958092,0.55,2606.9,2606.5,1.91828]
[1726969958249,0.64591178,2606.9,2606.5,1.91828]
[1726969958587,2.91171178,2606.9,2606.4,1.91831]
[1726969958797,1.91808,2606.8,2606.2,1.9576951]
[1726969958950,0.55,2606.6,2606.2,3.8761351]
[1726969959152,0.55,2606.6,2606.3,1.91837]
[1726969959489,0.55,2606.8,2606.4,1.91833]
[1726969959796,1.2168838,2606.8,2606.4,1.9287597]
[1726969959949,1.12096406,2606.8,2606.4,1.9287597]
[1726969960290,0.55,2606.9,2606.4,0.0104297]
[1726969960463,0.64591201,2606.9,2606.4,3.8470097]
[1726969960996,0.64591201,2606.9,2606.4,3.8470197]
[1726969961152,0.64591201,2606.9,2606.4,1.9287197]
[1726969961343,0.55,2606.7,2606.5,0.05240047]
[1726969961688,0.55,2606.6,2606.5,0.05240047]
[1726969961904,0.55,2606.8,2606.5,1.98111017]
[1726969964393,0.55,2606.8,2606.5,0.06283017]
[1726969964547,0.09591507,2606.7,2606.5,0.06283017]
[1726969964747,0.55,2606.6,2606.5,0.06283017]
[1726969965064,0.55,2606.8,2606.5,0.06283017]
[1726969965778,0.55,2606.9,2606.5,0.06283017]
[1726969966145,0.64591601,2606.9,2606.5,0.06283017]
[1726969966348,0.55,2606.7,2606.5,1.98110017]
[1726969966577,0.55,2606.9,2606.5,1.98110017]
[1726969968209,0.55,2606.9,2606.5,0.06283017]
[1726969968356,0.64591627,2606.9,2606.5,0.06283017]
[1726969968896,0.64591627,2606.9,2606.5,1.98111017]
[1726969969547,1.17369021,2606.9,2606.5,1.98111017]
[1726969970293,1.17369021,2606.9,2606.5,1.97956677]
[1726969970485,1.07777394,2606.9,2606.5,1.97956677]
[1726969973107,0.55,2606.7,2606.5,0.06128677]
[1726969973599,2.9245,2606.7,2606.5,0.06128677]
[1726969973753,0.85204119,2606.6,2606.5,0.06128677]
[1726969975358,0.85204119,2606.6,2606.5,0.0104297]
[1726969975564,8.14474119,2606.6,2606.5,0.0104297]
[1726969976406,8.14474119,2606.6,2606.5,1e-08]
[1726969980922,0.30204119,2606.6,2606.5,1e-08]
[1726969981085,0.39796664,2606.6,2606.5,1e-08]
[1726969981281,0.39796664,2606.6,2606.5,0.05228597]
[1726969981483,2.31616664,2606.6,2606.5,0.05228597]
[1726969981685,0.30204119,2606.6,2606.5,0.05228597]
[1726969982040,0.09592349,2606.7,2606.5,0.0475327]
[1726969983024,0.55,2606.6,2606.5,0.0475327]
[1726969983709,0.55,2606.8,2606.5,0.0475327]
[1726969983923,0.64592191,2606.8,2606.5,0.0475327]
[1726969984715,2.56398191,2606.8,2606.5,0.0475327]
[1726969984924,0.55,2606.6,2606.5,0.0475327]
[1726969987727,0.6459231,2606.6,2606.5,0.0475327]
[1726969988090,0.55,2606.6,2606.5,1e-08]
[1726969988292,0.55,2606.6,2606.5,0.05232327]
[1726969988490,0.55,2606.6,2606.5,1e-08]
[1726969988715,0.55,2606.6,2606.5,0.05232327]
[1726969988948,0.80639931,2606.6,2606.5,1e-08]
[1726969989086,0.80639931,2606.6,2606.5,0.05232327]
[1726969989287,0.80639931,2606.6,2606.5,1e-08]
[1726969989486,0.80639931,2606.6,2606.5,0.05232327]
[1726969989691,0.80639931,2606.6,2606.5,1e-08]
[1726969992691,5.15369931,2606.6,2606.5,1e-08]
[1726969994196,5.24962986,2606.6,2606.5,1e-08]
[1726969995295,8.24962986,2606.6,2606.5,1e-08]
[1726969995634,8.15369931,2606.6,2606.5,1e-08]
[1726969998009,13.65290146,2606.6,2606.5,1e-08]
[1726969999544,7.89767,2606.1,2606.0,0.0384179]
[1726969999901,7.89767,2606.1,2605.9,0.005]
[1726969999902,2.46864,2606.0,2605.9,0.005]
[1726970000653,2.5645967,2606.0,2605.9,0.005]
[1726970000939,4.9936967,2606.0,2605.9,0.005]
[1726970002136,4.89774,2606.0,2605.9,0.005]
[1726970002448,6.22977107,2606.0,2605.9,0.005]
[1726970002644,6.32573686,2606.0,2605.9,0.005]
[1726970003003,6.22977107,2606.0,2605.9,0.005]
[1726970003537,6.32573661,2606.0,2605.9,0.005]
[1726970003745,6.22977107,2606.0,2605.9,0.005]
[1726970004902,6.3257367,2606.0,2605.9,0.005]
[1726970007755,6.22977107,2606.0,2605.9,0.005]
[1726970007959,3.25067107,2606.0,2605.9,0.005]
[1726970008253,1.91857,2606.1,2605.9,0.005]
[1726970008770,5.06110485,2606.5,2605.9,0.005]
[1726970008771,5.90453415,2606.5,2605.9,0.005]
[1726970008929,1.91833,2606.5,2605.9,0.005]
[1726970009145,1.91844,2606.3,2605.9,0.005]
[1726970009464,2.01437922,2606.3,2606.0,0.04479828]
[1726970010263,3.0,2606.4,2606.0,0.04479828]
[1726970010429,4.91831,2606.5,2606.0,0.04479828]
[1726970010763,6.61968793,2606.5,2605.9,0.005]
[1726970011091,5.01424957,2606.5,2605.9,0.005]
[1726970011657,1.91841,2606.4,2606.0,0.04479828]
[1726970011835,1.91841,2606.4,2605.9,0.005]
[1726970012234,2.01434724,2606.4,2606.0,0.04479828]
[1726970012467,0.55,2606.3,2606.2,1.9185]
[1726970012964,0.55,2606.3,2606.2,1.96289973]
[1726970013167,9.34803,2606.9,2606.3,1.91837]
[1726970013465,0.09591794,2606.8,2606.4,0.04413977]
[1726970013669,0.09591797,2606.8,2606.4,0.04413977]
[1726970013958,2.01398797,2606.8,2606.2,1.9185]
[1726970014160,3.0,2607.0,2606.4,1.9183]
[1726970014461,1.91787,2607.1,2606.5,1.96615053]
[1726970014659,2.01377878,2607.1,2606.5,1.96615053]
[1726970014957,2.61489475,2607.1,2606.5,1.96615053]
[1726970015561,0.55,2607.0,2606.6,1.91819]
[1726970016152,0.69702475,2607.1,2606.6,0.4220167]
[1726970016153,0.60111597,2607.1,2606.6,0.4220167]
[1726970016325,7.43,2607.3,2606.8,1.918]
[1726970016526,7.43,2607.3,2606.7,0.04754834]
[1726970016755,7.43,2607.3,2606.6,0.4220167]
[1726970016756,7.43,2607.3,2606.9,0.04726486]
[1726970016956,1.19402405,2607.3,2606.8,1.68871903]
[1726970017272,2.59262048,2607.4,2607.0,1.91784]
[1726970018155,2.59262048,2607.4,2606.8,1.91803]
[1726970018324,0.60104541,2607.4,2606.8,1.91803]
[1726970018535,0.55,2607.3,2606.8,1.91803]
[1726970020927,0.55,2607.3,2606.8,3.5040007]
[1726970021128,0.55,2607.5,2606.8,3.85440077]
[1726970021468,0.55,2607.3,2606.6,3.5040007]
[1726970021830,0.55,2607.3,2606.7,0.05224892]
[1726970022042,0.55,2607.1,2606.7,0.05224892]
[1726970022257,0.55,2606.9,2606.7,0.05224892]
[1726970022442,0.64591686,2606.9,2605.9,0.005]
[1726970022770,0.99817769,2606.9,2605.9,0.35598045]
[1726970022976,0.99817769,2606.9,2606.0,0.05277767]
[1726970023140,0.55,2607.0,2606.5,1.91823]
[1726970023341,0.55,2607.1,2606.5,1.91823]
[1726970023730,2.46784,2607.1,2606.5,1.91823]
[1726970023929,2.46784,2607.1,2606.6,0.05197405]
[1726970024175,3.16507657,2607.1,2606.6,0.05197405]
[1726970024368,0.55,2607.1,2606.6,0.05197405]
[1726970024570,0.55,2607.2,2606.7,1.91813]
[1726970024731,2.56366537,2607.2,2606.5,1.91823]
[1726970024958,2.56366537,2607.2,2606.5,3.83646]
[1726970025196,0.55,2607.0,2606.6,0.05197405]
[1726970026373,0.55,2607.0,2606.6,1.97015405]
[1726970027003,0.55,2607.0,2606.6,0.05197405]
[1726970027516,0.55,2606.8,2606.6,0.05197405]
[1726970027819,0.55,2606.8,2606.2,1.91843]
[1726970028109,1.045894,2606.8,2606.3,0.04767447]
[1726970028609,1.045894,2606.8,2606.2,1.91843]
[1726970028774,1.045894,2606.8,2606.3,0.04761899]
[1726970031886,0.55,2606.6,2606.3,0.04761899]
[1726970032090,0.55,2606.4,2606.3,0.04761899]
[1726970032292,3.14082615,2606.4,2605.9,0.005]
[1726970032815,3.0449,2606.4,2606.0,0.0441933]
[1726970038192,0.55,2606.4,2606.0,0.0441933]
[1726970038778,0.55,2606.4,2606.0,1.9627933]
[1726970039380,0.55,2606.4,2606.0,1.9627833]
[1726970040695,0.55,2606.7,2606.2,1.91849]
[1726970041024,0.55,2606.8,2606.3,1.96908832]
[1726970042100,0.55,2606.8,2606.3,0.05070832]
[1726970042638,0.55,2606.8,2606.2,3.83694]
[1726970042639,0.55,2606.8,2606.2,1.91845]
[1726970042812,0.55,2606.6,2606.3,1.96909111]
[1726970044683,0.55,2606.8,2606.3,1.96909111]
[1726970045079,2.4949,2607.0,2606.4,1.91835]
[1726970045283,0.55,2606.9,2606.4,1.91835]
[1726970045728,0.55,2607.0,2606.6,1.91816]
[1726970046021,1.80909185,2607.0,2606.6,1.91816]
[1726970046183,0.55,2607.0,2606.6,3.83631]
[1726970046524,0.55,2607.0,2606.7,1.91813]
[1726970046731,0.55,2607.0,2606.6,1.91815]
[1726970046913,0.55,2606.8,2606.6,1.91815]
[1726970047790,0.85449,2606.8,2606.4,1.91834]
[1726970048094,0.85449,2606.8,2606.5,0.06288555]
[1726970048295,0.95040105,2606.8,2606.5,0.06288555]
[1726970048633,0.85449,2606.8,2606.4,1.91834]
[1726970048779,0.85449,2606.8,2606.5,0.06288555]
[1726970048981,0.526742,2606.7,2606.5,0.06288555]
[1726970049294,0.55,2606.6,2606.5,0.06288555]
[1726970050030,0.55,2606.6,2606.2,1.91845]
[1726970050360,0.55,2606.6,2606.3,0.05624485]
[1726970050868,0.55,2606.4,2606.3,0.05624485]
[1726970051183,0.8434923,2606.4,2606.3,0.05624485]
[1726970051459,0.8434923,2606.4,2606.3,0.05610951]
[1726970051815,0.8434923,2606.4,2606.1,1.91856]
[1726970052058,0.8434923,2606.4,2606.2,0.05628282]
[1726970052743,0.8434923,2606.4,2606.0,1.91859]
[1726970052946,0.55,2606.4,2606.3,0.05610951]
[1726970053620,0.55,2606.4,2606.0,1.91864]
[1726970053936,0.55,2606.4,2606.1,0.05645615]
[1726970054514,0.55,2606.4,2605.9,0.005]
[1726970054719,0.55,2606.4,2606.2,0.05628282]
[1726970054919,1.03531359,2606.4,2606.0,1.91863]
[1726970055158,1.03531359,2606.4,2606.3,0.05610951]
[1726970055458,1.03531359,2606.4,2605.9,0.005]
[1726970055624,1.03531359,2606.4,2606.0,0.05662949]
[1726970057539,1.1312409,2606.4,2606.0,0.05662949]
[1726970057766,0.55,2606.2,2606.0,0.05662949]
[1726970059319,0.55,2606.4,2606.0,0.05662949]
[1726970061171,2.815742,2606.7,2606.2,1.91844]
[1726970061389,2.289,2606.7,2606.2,1.91844]
[1726970061539,2.289,2606.7,2606.3,0.05057299]
[1726970062390,3.0,2607.1,2606.3,0.05057299]
[1726970062391,0.09591773,2607.0,2606.4,1.91835]
[1726970062695,4.30279837,2607.1,2606.5,1.96847752]
[1726970062842,0.2289,2607.0,2606.5,1.96847752]
[1726970064256,0.55,2606.9,2606.6,1.91819]
[1726970065487,0.55,2607.0,2606.7,1.91811]
[1726970065643,0.55,2607.0,2606.6,1.91819]
[1726970065851,0.55,2607.0,2606.7,1.91811]
[1726970066046,0.55,2607.0,2606.6,1.91819]
[1726970066541,0.8339,2607.0,2606.6,1.91819]
[1726970067184,0.8339,2607.0,2606.6,1.91814]
[1726970067356,0.8339,2607.0,2606.7,1.91807]
[1726970068248,0.8339,2607.0,2606.6,1.91814]
[1726970069099,0.8339,2607.0,2606.8,1.91805]
[1726970069295,0.8339,2607.0,2606.6,3.83628]
[1726970069458,0.8339,2607.0,2606.7,1.9181]
[1726970069894,0.55,2606.8,2606.4,1.91832]
[1726970070094,0.55,2606.6,2606.4,1.91832]
[1726970070305,0.55,2606.6,2606.4,0.06283522]
[1726970070810,0.55,2606.6,2606.2,1.91846]
[1726970071008,0.55,2606.6,2606.4,0.05032906]
[1726970071600,0.55,2606.6,2606.2,1.91846]
[1726970071797,0.55,2606.6,2606.4,1.96867906]
[1726970072997,0.55,2606.8,2606.5,1.91828]
[1726970073198,0.55,2606.8,2606.6,1.9182]
[1726970074558,0.55,2606.8,2606.4,1.91831]
[1726970074559,0.867249,2606.8,2606.4,1.91831]
[1726970074984,0.867249,2606.8,2606.4,1.96863906]
[1726970075191,0.867249,2606.8,2606.4,3.88694906]
[1726970075791,0.867249,2606.8,2606.4,1.96863906]
[1726970076580,0.55,2606.6,2606.4,1.96863906]
[1726970076996,0.55,2606.6,2606.4,0.05032906]
[1726970076997,0.8677449,2606.6,2606.4,0.05032906]
[1726970077338,0.8677449,2606.6,2606.3,1.9184]
[1726970077608,0.8677449,2606.6,2606.4,0.05026141]
[1726970077915,2.3102,2607.0,2606.4,1.96856141]
[1726970078097,2.3102,2607.0,2606.6,1.9182]
[1726970078980,2.3102,2607.0,2606.6,3.83634]
[1726970079187,2.3102,2607.0,2606.6,1.91814]
[1726970079383,0.55,2606.9,2606.6,1.91814]
[1726970083764,0.55,2606.9,2606.8,1.91806]
[1726970083973,0.55,2606.9,2606.6,1.91814]
[1726970092812,0.55,2606.9,2606.7,1.91809]
[1726970092988,0.55,2606.9,2606.6,1.91814]
[1726970094231,0.55,2606.9,2606.4,1.91832]
[1726970094232,0.89612553,2606.9,2606.4,3.83661]
[1726970094377,0.89612553,2606.9,2606.5,1.91828]
[1726970094725,0.89612553,2606.9,2606.4,3.83659]
[1726970095061,0.89612553,2606.9,2606.4,1.91829]
[1726970095616,0.89612553,2606.9,2606.5,1.91821]
[1726970095816,0.89612553,2606.9,2606.6,1.91819]
[1726970096118,0.89612553,2606.9,2606.5,3.83644]
[1726970097409,0.89612553,2606.9,2606.5,1.91821]
[1726970097612,0.55,2606.7,2606.3,1.91837]
[1726970097778,0.55,2606.5,2606.3,3.83675]
[1726970097984,0.55,2606.5,2606.4,1.91835]
[1726970101927,0.55,2606.5,2606.3,1.91837]
[1726970102137,0.55,2606.5,2606.4,1.91835]
[1726970102295,0.55,2606.7,2606.4,1.91835]
[1726970105735,0.55,2606.7,2606.3,1.91837]
[1726970105941,2.8337,2606.5,2605.9,1.92367]
[1726970106095,2.8337,2606.5,2606.1,1.91852]
[1726970106324,2.8337,2606.5,2606.2,0.05610994]
[1726970107175,2.8337,2606.5,2606.2,1.67576899]
[1726970107323,2.29882808,2606.8,2606.5,1.91821]
[1726970107324,2.2837,2606.8,2606.5,1.91821]
[1726970107821,2.2837,2606.8,2606.6,1.91818]
[1726970108046,2.2837,2606.8,2606.7,1.91813]
[1726970108276,2.88475525,2607.0,2606.6,3.53785905]
[1726970108473,2.88475525,2607.0,2606.6,1.9182]
[1726970108761,4.10800777,2607.0,2606.6,1.9182]
[1726970109270,0.55,2606.9,2606.6,1.9182]
[1726970110169,0.55,2606.9,2606.6,3.83636]
[1726970110372,0.55,2606.9,2606.6,1.91816]
[1726970110866,0.55,2606.9,2606.6,3.83632]
[1726970111070,0.55,2606.9,2606.6,3.83631]
[1726970111257,0.55,2606.9,2606.6,1.91815]
[1726970112131,0.55,2606.9,2606.7,1.91812]
[1726970112332,0.55,2606.9,2606.8,1.91806]
[1726970114770,0.55,2606.9,2606.7,1.91811]
[1726970115627,0.55,2606.9,2606.8,1.91806]
[1726970119651,0.89347553,2606.9,2606.6,1.91815]
[1726970120887,0.55,2606.9,2606.8,1.91806]
[1726970121272,0.55,2606.9,2606.6,3.8363]
[1726970122053,0.55,2606.9,2606.7,1.91811]
[1726970122571,0.55,2606.9,2606.6,1.91815]
[1726970123074,0.55,2606.9,2606.6,3.8363]
[1726970123599,0.55,2606.9,2606.6,1.91815]
[1726970125903,0.55,2606.9,2606.7,1.91811]
[1726970126100,0.89347553,2606.9,2606.7,1.91811]
[1726970126689,0.89347553,2606.9,2606.6,1.91815]
[1726970126892,0.89347553,2606.9,2606.6,3.83631]
[1726970127088,0.89347553,2606.9,2606.6,1.91815]
[1726970127303,0.89347553,2606.9,2606.6,3.83631]
[1726970127478,0.89347553,2606.9,2606.6,1.91815]
[1726970129432,0.55,2606.9,2606.7,1.91812]
[1726970130219,0.55,2606.9,2606.6,1.91815]
[1726970130828,0.55,2606.9,2606.4,3.83662]
[1726970131326,0.55,2606.7,2606.5,1.91827]
[1726970131727,0.55,2606.7,2606.4,1.91829]
[1726970131927,1.045849,2606.7,2606.4,1.9741473]
[1726970132651,0.55,2606.7,2606.4,1.9741473]
[1726970133831,0.55,2606.7,2606.5,1.91827]
[1726970134534,0.55,2606.7,2606.6,1.9182]
[1726970135328,0.55,2606.7,2606.4,3.83658]
[1726970135735,0.55,2606.7,2606.4,3.8924373]
[1726970136027,0.55,2606.7,2606.4,1.9741473]
[1726970136206,0.55,2606.7,2606.6,1.9182]
[1726970136754,0.55,2606.9,2606.6,1.9182]
[1726970137119,2.4905,2607.3,2606.8,3.53796363]
[1726970137334,2.4905,2607.3,2607.0,1.91786]
[1726970137535,2.4905,2607.3,2607.1,1.91778]
[1726970137731,2.4905,2607.3,2607.0,1.91786]
[1726970139010,2.4905,2607.3,2606.6,1.61990363]
[1726970139208,2.79965079,2607.3,2606.6,1.61990363]
[1726970139451,0.55,2607.2,2606.6,1.61990363]
[1726970140027,0.55,2607.2,2606.4,1.61990363]
[1726970141358,0.55,2607.2,2606.8,3.83598]
[1726970143112,0.55,2607.2,2606.8,1.91799]
[1726970143356,0.55,2607.0,2606.8,1.91799]
[1726970144039,3.0405,2606.9,2606.8,1.91799]
[1726970146560,0.55,2606.9,2606.8,1.91799]
[1726970146859,0.55,2607.0,2606.8,1.91799]
[1726970151339,0.55,2607.0,2606.7,1.91813]
[1726970151559,0.55,2607.0,2606.6,1.61990363]
[1726970156997,2.3741,2607.7,2606.8,1.61990363]
[1726970157198,2.3741,2607.7,2607.5,1.61990363]
[1726970157480,0.23741,2607.6,2606.6,0.8398415]
[1726970157683,2.3741,2607.7,2607.5,1.61990363]
[1726970157890,2.3741,2608.1,2607.5,1.35657785]
[1726970158454,0.55,2608.0,2607.5,1.35657785]
[1726970158696,2.3741,2608.1,2607.5,1.35657785]
[1726970160059,0.55,2608.0,2607.5,1.35657785]
[1726970160369,0.84241,2608.0,2607.5,1.35657785]
[1726970160559,0.55,2607.6,2606.1,3.0]
[1726970160758,0.55,2607.6,2607.0,1.61990363]
[1726970162062,0.55,2607.6,2607.0,3.0]
[1726970163418,0.84241,2607.6,2607.0,3.0]
[1726970163804,0.84241,2607.6,2606.9,3.50705459]
[1726970164567,0.55,2607.4,2606.7,3.0]
[1726970164798,0.55,2607.2,2606.7,3.0]
[1726970165013,2.3741,2607.3,2606.7,3.0]
[1726970165303,2.3741,2607.3,2606.7,3.65070546]
[1726970165766,0.55,2607.2,2606.7,3.65070546]